bitfinex-derivatives/quotes_BTCF0:USTF0_20240903
["timestamp","ask_amount","ask_price","bid_price","bid_amount"]
[1725361837565,0.085561,58992.0,58991.0,0.13631622]
[1725361837881,0.085561,58992.0,58991.0,0.36631622]
[1725361838996,0.0008,58992.0,58991.0,0.72711622]
[1725361839173,0.0008,58992.0,58991.0,0.81187822]
[1725361839478,0.0008,58992.0,58991.0,1.92043822]
[1725361839873,0.3608,59000.0,58999.0,0.084751]
[1725361840082,0.3608,59000.0,58999.0,0.314751]
[1725361840964,0.3658,59000.0,58999.0,0.315751]
[1725361841168,0.3698,59000.0,58999.0,0.315751]
[1725361841881,0.454549,59000.0,58999.0,0.315751]
[1725361842775,0.093749,59000.0,58999.0,0.315751]
[1725361842976,0.093749,59000.0,58999.0,0.085751]
[1725361846378,0.093749,59000.0,58999.0,0.315751]
[1725361848089,0.093749,59000.0,58999.0,0.085751]
[1725361849279,0.193749,59000.0,58999.0,0.085751]
[1725361852977,0.554549,59000.0,58999.0,0.085751]
[1725361855389,0.554549,59000.0,58999.0,0.001]
[1725361856173,0.639298,59000.0,58999.0,0.001]
[1725361862587,0.554549,59000.0,58999.0,0.001]
[1725361862990,0.554549,59000.0,58999.0,0.085751]
[1725361863189,0.109,59000.0,58999.0,0.676551]
[1725361863397,0.009,59000.0,58999.0,0.761302]
[1725361864503,0.009,59000.0,58999.0,0.761702]
[1725361864687,0.00025422,59002.0,59001.0,0.084748]
[1725361864894,0.00025422,59002.0,59001.0,0.085148]
[1725361865694,0.00025422,59002.0,59001.0,0.169896]
[1725361867993,0.00225422,59002.0,59001.0,0.169896]
[1725361868195,0.00325422,59002.0,59001.0,0.169896]
[1725361869999,0.00325422,59002.0,59001.0,0.085148]
[1725361870398,0.00325422,59002.0,59001.0,0.09331007]
[1725361871905,0.08800122,59002.0,59001.0,0.09081007]
[1725361877502,0.13800122,59002.0,59001.0,0.09081007]
[1725361881711,0.00325422,59002.0,59001.0,0.17555807]
[1725361881903,0.00325422,59002.0,59001.0,0.24326521]
[1725361882507,0.00325422,59002.0,59001.0,0.24322726]
[1725361882807,0.00325422,59002.0,59001.0,0.24322762]
[1725361883605,0.00325422,59002.0,59001.0,0.17555807]
[1725361887312,0.00325422,59002.0,59001.0,0.53635807]
[1725361888108,0.00325422,59002.0,59001.0,0.17555807]
[1725361888307,0.00325422,59002.0,59001.0,0.53635807]
[1725361890009,0.00325422,59002.0,59001.0,0.58714035]
[1725361890711,0.00325422,59002.0,59001.0,0.53635807]
[1725361893016,0.00325422,59002.0,59001.0,0.60406777]
[1725361893918,0.00325422,59002.0,59001.0,0.69406777]
[1725361896916,0.00325422,59002.0,59001.0,0.62635807]
[1725361899114,0.0039,59009.0,59008.0,0.169476]
[1725361899417,0.3608,59021.0,59008.0,0.169476]
[1725361899418,0.0505,59018.0,59017.0,0.084725]
[1725361899610,0.0505,59018.0,59017.0,0.174725]
[1725361899611,0.0566,59018.0,59017.0,0.174725]
[1725361899814,0.0566,59018.0,59017.0,0.175125]
[1725361901215,0.0596,59018.0,59017.0,0.176125]
[1725361901521,0.0626,59018.0,59017.0,0.177125]
[1725361902310,0.0626,59018.0,59017.0,0.18546265]
[1725361902825,0.147324,59018.0,59017.0,0.18546265]
[1725361903013,1.340368,59018.0,59017.0,0.0024]
[1725361903213,0.169462,59013.0,59012.0,0.00025422]
[1725361903423,0.730662,59013.0,59012.0,0.00025422]
[1725361903720,0.79144051,59013.0,59012.0,0.00025422]
[1725361904615,0.79444051,59013.0,59012.0,0.00125422]
[1725361904820,0.79744051,59013.0,59012.0,0.00225422]
[1725361905020,0.736662,59013.0,59012.0,0.00225422]
[1725361905616,0.736662,59013.0,59012.0,0.00125422]
[1725361905823,0.733662,59013.0,59012.0,0.00125422]
[1725361906127,0.876662,59013.0,59012.0,0.00225422]
[1725361906628,0.88499864,59013.0,59012.0,0.00225422]
[1725361911032,0.96972964,59013.0,59012.0,0.00225422]
[1725361913134,0.57026764,59013.0,59012.0,0.23225422]
[1725361913341,0.201131,59013.0,59012.0,0.23225422]
[1725361914232,0.198131,59013.0,59012.0,0.23125422]
[1725361914434,0.202131,59013.0,59012.0,0.23125422]
[1725361914837,0.202131,59013.0,59012.0,0.31598622]
[1725361915033,0.202131,59013.0,59012.0,0.31498622]
[1725361915034,0.199131,59013.0,59012.0,0.31498622]
[1725361915335,0.203131,59013.0,59012.0,0.31698622]
[1725361916547,0.1184,59013.0,59012.0,0.32513233]
[1725361918032,0.1184,59013.0,59012.0,0.32413233]
[1725361918637,0.1124,59013.0,59012.0,0.32313233]
[1725361918843,0.1144,59013.0,59012.0,0.32313233]
[1725361919336,0.1154,59013.0,59012.0,0.32313233]
[1725361919541,0.1164,59013.0,59012.0,0.32313233]
[1725361920331,0.201131,59013.0,59012.0,0.08498622]
[1725361921434,0.195131,59013.0,59012.0,0.08498622]
[1725361921636,0.203131,59013.0,59012.0,0.08498622]
[1725361922034,0.199131,59013.0,59012.0,0.31498622]
[1725361922241,0.203131,59013.0,59012.0,0.31498622]
[1725361922558,0.203131,59013.0,59012.0,0.31598622]
[1725361922933,0.1184,59013.0,59012.0,0.31698622]
[1725361925538,0.1144,59013.0,59012.0,0.31498622]
[1725361925742,0.1184,59013.0,59012.0,0.31598622]
[1725361926139,0.0044,59013.0,59012.0,0.31498622]
[1725361926339,0.0084,59013.0,59012.0,0.31598622]
[1725361926542,0.0184,59013.0,59012.0,0.31598622]
[1725361927963,0.0184,59013.0,59012.0,0.00125422]
[1725361927964,0.187862,59013.0,59012.0,0.00125422]
[1725361928256,1.490953,59013.0,59012.0,0.00125422]
[1725361928462,1.292222,59013.0,59012.0,0.00025422]
[1725361928658,1.296222,59013.0,59012.0,0.00025422]
[1725361929550,1.296222,59013.0,59012.0,0.00125422]
[1725361931460,1.296222,59013.0,59012.0,0.00225422]
[1725361933255,0.787862,59013.0,59012.0,0.00225422]
[1725361933465,0.187862,59013.0,59012.0,0.00225422]
[1725361935764,0.103131,59013.0,59012.0,0.00225422]
[1725361942553,0.103131,59013.0,59012.0,0.09765422]
[1725361942758,0.089131,59013.0,59012.0,0.18138622]
[1725361943077,0.093131,59013.0,59012.0,0.18238622]
[1725361944971,0.0044,59013.0,59012.0,0.18138622]
[1725361945162,0.0044,59013.0,59012.0,0.18238622]
[1725361945163,0.0084,59013.0,59012.0,0.18238622]
[1725361947765,0.0084,59013.0,59012.0,0.1906784]
[1725361948167,0.0084,59013.0,59012.0,0.1896784]
[1725361953469,0.0084,59013.0,59012.0,0.5504784]
[1725361956068,0.093131,59013.0,59012.0,0.45745422]
[1725361956388,0.517862,59013.0,59012.0,0.05075422]
[1725361956571,0.57863515,59013.0,59012.0,0.05075422]
[1725361957179,0.517862,59013.0,59012.0,0.05075422]
[1725361957980,0.287862,59013.0,59012.0,0.05075422]
[1725361958772,0.283862,59013.0,59012.0,0.05075422]
[1725361958978,0.287862,59013.0,59012.0,0.05175422]
[1725361964577,0.287862,59013.0,59012.0,0.00225422]
[1725361966881,0.203131,59013.0,59012.0,0.08698622]
[1725361967581,0.203131,59013.0,59012.0,0.31698622]
[1725361971887,0.203131,59013.0,59012.0,0.08698622]
[1725361972086,0.203131,59013.0,59012.0,0.17698622]
[1725361981094,0.203131,59013.0,59012.0,0.17598622]
[1725361981480,0.1184,59013.0,59012.0,0.17598622]
[1725361983997,0.203131,59013.0,59012.0,0.17598622]
[1725361991706,0.1184,59013.0,59012.0,0.17598622]
[1725361991907,0.0084,59013.0,59012.0,0.62151822]
[1725361992601,1e-08,59013.0,59012.0,0.62151822]
[1725361993303,1e-08,59013.0,59012.0,1.72987822]
[1725361994901,1e-08,59013.0,59012.0,1.81461022]
[1725361995099,0.0039,59022.0,59021.0,0.169438]
[1725361995302,0.00025422,59023.0,59022.0,0.084718]
[1725361995503,0.00025422,59023.0,59022.0,0.24885158]
[1725361995712,0.00025422,59023.0,59022.0,0.24925158]
[1725361995911,0.00025422,59023.0,59022.0,0.24885158]
[1725361996216,0.00025422,59023.0,59022.0,0.181118]
[1725361997108,0.00025422,59023.0,59022.0,0.24985158]
[1725361997415,0.00025422,59023.0,59022.0,0.182118]
[1725361997710,0.00025422,59023.0,59022.0,0.183118]
[1725361998912,0.084707,59030.0,59029.0,0.084708]
[1725361999110,0.084707,59030.0,59029.0,0.175108]
[1725362000113,0.084707,59030.0,59029.0,0.177108]
[1725362003010,0.084704,59032.0,59031.0,0.084702]
[1725362003208,0.084704,59032.0,59031.0,0.174702]
[1725362003413,0.084704,59032.0,59031.0,0.175102]
[1725362004210,0.084704,59032.0,59031.0,0.177102]
[1725362008608,0.00821085,59034.0,59033.0,0.084702]
[1725362008811,0.00025422,59035.0,59033.0,0.085102]
[1725362009020,0.00025422,59035.0,59034.0,0.175101]
[1725362009915,0.08495322,59035.0,59034.0,0.175101]
[1725362010510,0.08495322,59035.0,59034.0,0.176101]
[1725362010715,0.08495322,59035.0,59034.0,0.177101]
[1725362012620,0.09314053,59035.0,59034.0,0.177101]
[1725362015120,0.08495322,59035.0,59034.0,0.177101]
[1725362015516,0.08495322,59035.0,59034.0,0.222101]
[1725362025328,0.14570381,59035.0,59034.0,0.222101]
[1725362026531,0.08495322,59035.0,59034.0,0.222101]
[1725362035135,0.08495322,59035.0,59034.0,0.177101]
[1725362035341,0.08495322,59035.0,59034.0,0.176101]
[1725362035537,0.08495322,59035.0,59034.0,0.177101]
[1725362040141,0.20495322,59035.0,59034.0,0.0014]
[1725362040448,0.26570609,59035.0,59034.0,0.0024]
[1725362042548,0.26570609,59035.0,59034.0,0.0924]
[1725362043541,0.26570609,59035.0,59034.0,0.0914]
[1725362043757,0.26570609,59035.0,59034.0,0.0924]
[1725362045542,0.26570609,59035.0,59034.0,0.0914]
[1725362045743,0.26570609,59035.0,59034.0,0.0924]
[1725362046043,0.26570609,59035.0,59034.0,0.0914]
[1725362046348,0.26570609,59035.0,59034.0,0.0924]
[1725362047139,0.20495322,59035.0,59034.0,0.0924]
[1725362049055,0.20495322,59035.0,59034.0,0.0914]
[1725362049353,0.20495322,59035.0,59034.0,0.0924]
[1725362051652,0.20495322,59035.0,59034.0,0.0914]
[1725362051850,0.20495322,59035.0,59034.0,0.0924]
[1725362054358,0.20495322,59035.0,59034.0,0.177101]
[1725362058649,0.20495322,59035.0,59034.0,0.176101]
[1725362058853,0.20495322,59035.0,59034.0,0.177101]
[1725362059747,0.26570679,59035.0,59034.0,0.177101]
[1725362060261,0.20495322,59035.0,59034.0,0.177101]
[1725362070769,0.20495322,59035.0,59034.0,0.087101]
[1725362072460,0.20495322,59035.0,59034.0,0.086101]
[1725362072660,0.20495322,59035.0,59034.0,0.0024]
[1725362079170,0.20495322,59035.0,59034.0,0.087101]
[1725362079963,0.20495322,59035.0,59034.0,0.086101]
[1725362080173,0.20495322,59035.0,59034.0,0.087101]
[1725362082671,0.20495322,59035.0,59034.0,0.274901]
[1725362083065,0.20495322,59035.0,59034.0,0.273901]
[1725362083296,0.20495322,59035.0,59034.0,0.274901]
[1725362083972,0.20495322,59035.0,59034.0,0.273901]
[1725362084173,0.20495322,59035.0,59034.0,0.274901]
[1725362084768,0.20495322,59035.0,59034.0,0.32563032]
[1725362084977,0.20495322,59035.0,59034.0,0.274901]
[1725362084978,0.12025422,59035.0,59034.0,0.274901]
[1725362085570,0.12025422,59035.0,59034.0,0.42733558]
[1725362091373,0.12025422,59035.0,59034.0,0.359602]
[1725362092174,0.08859,59042.0,59041.0,0.084691]
[1725362092365,0.08469,59042.0,59041.0,0.175091]
[1725362093263,0.06074597,59045.0,59041.0,0.175091]
[1725362093264,0.14543097,59045.0,59044.0,0.084686]
[1725362093469,0.094685,59045.0,59044.0,0.175086]
[1725362093961,0.10304593,59045.0,59044.0,0.175086]
[1725362095075,0.10304593,59045.0,59044.0,0.176086]
[1725362095470,0.10304593,59045.0,59044.0,0.177086]
[1725362095871,0.01836093,59045.0,59044.0,0.177086]
[1725362097765,0.01,59045.0,59044.0,0.177086]
[1725362098775,0.094685,59045.0,59044.0,0.177086]
[1725362100383,0.094685,59045.0,59044.0,0.1852195]
[1725362105590,0.01,59045.0,59044.0,0.1852195]
[1725362110088,0.00025422,59047.0,59046.0,0.084683]
[1725362110482,0.00025422,59047.0,59046.0,0.085083]
[1725362111381,0.00025422,59047.0,59046.0,0.086083]
[1725362111590,0.00025422,59047.0,59046.0,0.087083]
[1725362119083,0.00025422,59047.0,59046.0,0.171766]
[1725362121481,0.00025422,59047.0,59046.0,0.087083]
[1725362122692,0.00025422,59047.0,59046.0,1.447083]
[1725362126891,0.00025422,59047.0,59046.0,1.531766]
[1725362128496,0.0039,59054.0,59053.0,0.084673]
[1725362128698,0.084669,59057.0,59056.0,0.084669]
[1725362128996,0.084669,59057.0,59056.0,0.175069]
[1725362130989,0.084669,59057.0,59056.0,0.176069]
[1725362131789,0.084669,59057.0,59056.0,0.177069]
[1725362131989,0.084664,59060.0,59059.0,0.084663]
[1725362132290,0.084664,59060.0,59059.0,0.175063]
[1725362133499,0.084664,59060.0,59059.0,0.176063]
[1725362133807,0.084664,59060.0,59059.0,0.177063]
[1725362135999,0.11797834,59062.0,59061.0,0.084662]
[1725362136199,0.06098113,59062.0,59061.0,0.085062]
[1725362136386,0.06098113,59062.0,59061.0,0.445862]
[1725362136589,0.00025401,59062.0,59061.0,0.530524]
[1725362136997,0.06072712,59069.0,59068.0,0.174652]
[1725362137195,0.0039,59074.0,59073.0,0.084645]
[1725362137497,0.0039,59074.0,59073.0,0.174645]
[1725362137498,0.084643,59074.0,59073.0,0.174645]
[1725362137796,0.10882712,59077.0,59073.0,0.09]
[1725362137797,0.11698233,59077.0,59073.0,0.09]
[1725362138103,0.11698233,59077.0,59068.0,0.0004]
[1725362138104,0.445439,59078.0,59076.0,0.17504]
[1725362138296,0.445439,59078.0,59077.0,0.0004]
[1725362139504,0.445439,59078.0,59077.0,0.0014]
[1725362139702,0.445439,59078.0,59077.0,0.086039]
[1725362139996,0.3608,59078.0,59077.0,0.086039]
[1725362140699,0.3608,59078.0,59077.0,0.087039]
[1725362141698,0.3608,59078.0,59077.0,0.086039]
[1725362142395,0.3608,59078.0,59077.0,0.087039]
[1725362142591,0.3608,59078.0,59077.0,0.086039]
[1725362142799,0.3608,59078.0,59077.0,0.087039]
[1725362143095,0.445438,59078.0,59077.0,0.087039]
[1725362143504,0.445438,59078.0,59077.0,0.086039]
[1725362143704,0.084638,59078.0,59077.0,0.087039]
[1725362144903,0.1453475,59078.0,59077.0,0.087039]
[1725362145813,0.1453475,59078.0,59077.0,0.086039]
[1725362146003,0.1453475,59078.0,59077.0,0.087039]
[1725362146597,0.1553475,59078.0,59077.0,0.087039]
[1725362147004,0.1553475,59078.0,59077.0,0.086039]
[1725362147208,0.1553475,59078.0,59077.0,0.087039]
[1725362148310,0.0707095,59078.0,59077.0,0.087039]
[1725362152798,0.0607095,59078.0,59077.0,0.086039]
[1725362153003,0.36096828,59079.0,59078.0,0.084638]
[1725362153201,0.41096828,59079.0,59078.0,0.085038]
[1725362153401,0.05016828,59079.0,59078.0,0.085038]
[1725362154907,0.05016828,59079.0,59078.0,0.086038]
[1725362155413,0.05016828,59079.0,59078.0,0.087038]
[1725362156113,0.14016828,59079.0,59078.0,0.087038]
[1725362157707,0.22480428,59079.0,59078.0,0.087038]
[1725362159409,0.22480428,59079.0,59078.0,0.0024]
[1725362161619,0.13480428,59079.0,59078.0,0.0024]
[1725362165917,0.13480428,59079.0,59078.0,0.087038]
[1725362167926,0.19551267,59079.0,59078.0,0.087038]
[1725362175029,0.13480428,59079.0,59078.0,0.087038]
[1725362181636,0.13480428,59079.0,59078.0,0.177038]
[1725362183132,0.19551193,59079.0,59078.0,0.177038]
[1725362184440,0.13480428,59079.0,59078.0,0.177038]
[1725362186135,0.19551193,59079.0,59078.0,0.177038]
[1725362186343,0.13480428,59079.0,59078.0,0.177038]
[1725362186536,0.19551193,59079.0,59078.0,0.177038]
[1725362190047,0.13480428,59079.0,59078.0,0.177038]
[1725362192048,0.08480428,59079.0,59078.0,0.177038]
[1725362198052,0.14551246,59079.0,59078.0,0.177038]
[1725362200953,0.14551246,59079.0,59078.0,0.087038]
[1725362204645,0.26551246,59079.0,59078.0,0.0024]
[1725362205151,0.20480428,59079.0,59078.0,0.0024]
[1725362206663,0.20480428,59079.0,59078.0,0.177038]
[1725362208363,0.56560428,59079.0,59078.0,0.177038]
[1725362209264,0.20480428,59079.0,59078.0,0.177038]
[1725362216563,0.26551239,59079.0,59078.0,0.177038]
[1725362220168,0.20480428,59079.0,59078.0,0.177038]
[1725362220681,0.20480428,59079.0,59078.0,0.087038]
[1725362221180,0.20480428,59079.0,59078.0,0.0024]
[1725362222370,0.20480428,59079.0,59078.0,0.0924]
[1725362223967,0.20480428,59079.0,59078.0,0.177038]
[1725362224562,0.20480428,59079.0,59078.0,0.0924]
[1725362229689,0.20480428,59079.0,59078.0,0.177038]
[1725362235077,0.2655139,59079.0,59078.0,0.177038]
[1725362241479,0.2655139,59079.0,59078.0,0.087038]
[1725362241784,0.3555139,59079.0,59078.0,0.087038]
[1725362243078,0.4401499,59079.0,59078.0,0.0024]
[1725362243279,0.74024028,59079.0,59078.0,0.0024]
[1725362255997,0.37944028,59079.0,59078.0,0.0024]
[1725362256193,0.74024028,59079.0,59078.0,0.0024]
[1725362260092,0.37944028,59079.0,59078.0,0.0024]
[1725362260296,0.74024028,59079.0,59078.0,0.0024]
[1725362260597,0.37944028,59079.0,59078.0,0.0024]
[1725362260796,0.74024028,59079.0,59078.0,0.0024]
[1725362261804,0.74024028,59079.0,59063.0,0.449358]
[1725362261805,0.084651,59069.0,59063.0,0.449358]
[1725362261997,0.084651,59069.0,59063.0,0.445458]
[1725362261998,0.740102,59069.0,59063.0,0.445458]
[1725362262194,0.740502,59069.0,59063.0,0.445458]
[1725362263203,0.740502,59069.0,59063.0,0.084658]
[1725362263891,0.740502,59069.0,59068.0,0.00025401]
[1725362264097,0.740502,59069.0,59068.0,0.00525401]
[1725362265504,0.74884722,59069.0,59068.0,0.00525401]
[1725362265805,0.29804722,59069.0,59068.0,0.00525401]
[1725362265994,0.29804722,59069.0,59068.0,0.17990601]
[1725362265995,0.4812,59069.0,59068.0,0.17990601]
[1725362269700,0.4812,59069.0,59068.0,0.18807138]
[1725362276009,0.4812,59069.0,59068.0,0.09807138]
[1725362276600,0.4812,59069.0,59068.0,0.08990601]
[1725362277004,0.650502,59069.0,59068.0,0.00525401]
[1725362277207,0.785153,59069.0,59068.0,0.00525401]
[1725362277399,1.893033,59069.0,59068.0,0.00525401]
[1725362278413,1.893033,59069.0,59068.0,0.00225401]
[1725362278707,2.255833,59069.0,59068.0,0.00025401]
[1725362279305,0.084671,59055.0,59054.0,0.1023]
[1725362279501,0.175071,59055.0,59054.0,0.1481]
[1725362279704,0.0004,59055.0,59054.0,0.322772]
[1725362280313,0.0004,59055.0,59054.0,0.683572]
[1725362280613,0.00025401,59060.0,59059.0,0.084665]
[1725362280807,0.00025401,59060.0,59059.0,0.22577741]
[1725362281028,0.00025401,59060.0,59059.0,0.175065]
[1725362281708,0.00025401,59060.0,59059.0,0.2257758]
[1725362281904,0.00025401,59060.0,59059.0,0.2327758]
[1725362282104,0.00025401,59060.0,59059.0,0.2397758]
[1725362282517,0.00025401,59060.0,59059.0,0.23977567]
[1725362283411,0.00025401,59060.0,59059.0,1.657825]
[1725362283711,0.0039,59068.0,59067.0,0.084653]
[1725362283929,0.3608,59073.0,59071.0,0.084648]
[1725362283930,0.0039,59072.0,59071.0,0.084648]
[1725362284117,0.0039,59072.0,59067.0,0.14070459]
[1725362284118,0.3608,59073.0,59072.0,0.183]
[1725362284415,0.3608,59073.0,59072.0,0.267646]
[1725362285207,0.3618,59073.0,59072.0,0.268646]
[1725362286906,0.3618,59073.0,59072.0,0.269646]
[1725362286907,0.3628,59073.0,59072.0,0.269646]
[1725362287111,0.002,59073.0,59072.0,0.269646]
[1725362290008,0.002,59073.0,59072.0,0.27798607]
[1725362293020,0.002,59073.0,59072.0,0.179646]
[1725362293021,0.092,59073.0,59072.0,0.179646]
[1725362293424,0.176645,59073.0,59072.0,0.179646]
[1725362293818,0.176645,59073.0,59072.0,0.132246]
[1725362295627,0.002,59073.0,59072.0,0.222246]
[1725362297924,0.002,59073.0,59072.0,0.362246]
[1725362301332,0.002,59073.0,59072.0,0.723046]
[1725362302922,0.002,59073.0,59072.0,0.807692]
[1725362304131,0.002,59073.0,59072.0,0.446892]
[1725362304733,0.00016828,59078.0,59077.0,0.084639]
[1725362304940,0.01016828,59078.0,59077.0,0.315039]
[1725362306035,0.01116828,59078.0,59077.0,0.316039]
[1725362306641,0.01116828,59078.0,59077.0,0.317039]
[1725362307343,0.01116828,59078.0,59077.0,0.316039]
[1725362307535,0.01116828,59078.0,59077.0,0.317039]
[1725362308337,0.01016828,59078.0,59077.0,0.317039]
[1725362309637,0.01016828,59078.0,59077.0,0.3252555]
[1725362309844,0.01016828,59078.0,59077.0,0.3242555]
[1725362310044,0.01016828,59078.0,59077.0,0.3252555]
[1725362317952,0.01016828,59078.0,59077.0,0.1852555]
[1725362318852,0.01016828,59078.0,59077.0,0.0952555]
[1725362319044,0.10016828,59078.0,59077.0,0.087039]
[1725362319945,0.09480628,59078.0,59077.0,0.087039]
[1725362324652,0.09480628,59078.0,59077.0,0.0024]
[1725362327861,0.01016828,59078.0,59077.0,0.0024]
[1725362328153,0.01016828,59078.0,59077.0,0.087039]
[1725362338368,0.09480628,59078.0,59077.0,0.087039]
[1725362340167,0.18480628,59078.0,59077.0,0.087039]
[1725362340368,0.26944428,59078.0,59077.0,0.0024]
[1725362341870,0.18480628,59078.0,59077.0,0.0024]
[1725362343271,0.54560628,59078.0,59077.0,0.0024]
[1725362348467,0.60631882,59078.0,59077.0,0.0024]
[1725362354078,0.24551882,59078.0,59077.0,0.0024]
[1725362354274,0.60631882,59078.0,59077.0,0.0024]
[1725362355576,0.54560628,59078.0,59077.0,0.0024]
[1725362357179,0.63024428,59078.0,59077.0,0.0024]
[1725362357382,1.92268228,59078.0,59077.0,0.0024]
[1725362358676,0.169304,59068.0,59067.0,0.00065401]
[1725362358878,0.730504,59068.0,59067.0,0.00065401]
[1725362359482,1.091304,59068.0,59067.0,0.00065401]
[1725362359982,1.091304,59068.0,59067.0,0.00025401]
[1725362360277,1.092304,59068.0,59067.0,0.00025401]
[1725362364176,1.10057646,59068.0,59067.0,0.00025401]
[1725362365077,1.01592446,59068.0,59067.0,0.00025401]
[1725362367684,0.56512446,59068.0,59067.0,0.00025401]
[1725362367887,0.65512446,59068.0,59067.0,0.00025401]
[1725362368489,0.73977646,59068.0,59067.0,0.00025401]
[1725362368679,0.65512446,59068.0,59067.0,0.00025401]
[1725362369074,0.73977646,59068.0,59067.0,0.00025401]
[1725362371788,0.56512446,59068.0,59067.0,0.00025401]
[1725362371992,0.4722,59068.0,59067.0,0.08490701]
[1725362372177,0.3622,59068.0,59067.0,0.08490701]
[1725362373890,0.3622,59068.0,59067.0,0.31490701]
[1725362374081,0.0014,59068.0,59067.0,0.31490701]
[1725362376296,0.0014,59068.0,59067.0,0.37376471]
[1725362377591,0.0014,59068.0,59067.0,0.32306012]
[1725362384899,0.0014,59068.0,59067.0,0.40771312]
[1725362387697,0.0014,59068.0,59067.0,0.17771312]
[1725362388097,0.0014,59068.0,59067.0,0.40771312]
[1725362390898,0.0014,59068.0,59067.0,0.76851312]
[1725362396006,0.0014,59068.0,59067.0,0.62851312]
[1725362397109,0.0014,59068.0,59067.0,0.54386012]
[1725362397909,0.0014,59068.0,59067.0,0.18306012]
[1725362399512,0.0014,59068.0,59067.0,0.26771312]
[1725362401220,0.0039,59076.0,59075.0,0.084642]
[1725362401517,0.00016828,59078.0,59077.0,0.084639]
[1725362401913,0.00016828,59078.0,59077.0,0.085039]
[1725362402115,0.00016828,59078.0,59077.0,0.084639]
[1725362403913,0.01116828,59078.0,59077.0,0.085639]
[1725362404916,0.02216828,59078.0,59077.0,0.086639]
[1725362405115,0.13216828,59078.0,59077.0,0.086639]
[1725362405318,0.26540628,59078.0,59077.0,0.002]
[1725362405520,0.32611493,59078.0,59077.0,0.002]
[1725362406323,0.77155293,59078.0,59077.0,0.002]
[1725362406514,1.92935293,59078.0,59077.0,0.002]
[1725362406817,1.87935293,59078.0,59077.0,0.002]
[1725362407716,1.81864428,59078.0,59077.0,0.002]
[1725362410115,1.21864428,59078.0,59077.0,0.002]
[1725362410313,0.71084428,59078.0,59077.0,0.002]
[1725362410621,1.21864428,59078.0,59077.0,0.002]
[1725362411008,1.57944428,59078.0,59077.0,0.002]
[1725362411213,2.17944428,59078.0,59077.0,0.002]
[1725362413724,1.45784428,59078.0,59077.0,0.002]
[1725362414016,2.17944428,59078.0,59077.0,0.002]
[1725362415613,2.24016127,59078.0,59077.0,0.002]
[1725362416812,2.33016127,59078.0,59077.0,0.002]
[1725362417019,1.73016127,59078.0,59077.0,0.002]
[1725362417214,2.28156127,59078.0,59077.0,0.002]
[1725362417419,1.02840628,59078.0,59077.0,0.002]
[1725362418121,1.08912236,59078.0,59077.0,0.002]
[1725362422834,1.02840628,59078.0,59077.0,0.002]
[1725362428036,1.24768228,59078.0,59077.0,0.002]
[1725362428237,1.67084428,59078.0,59077.0,0.002]
[1725362429038,1.16304428,59078.0,59077.0,0.002]
[1725362432325,1.11304428,59078.0,59077.0,0.002]
[1725362432830,1.16304428,59078.0,59077.0,0.002]
[1725362433035,1.11304428,59078.0,59077.0,0.002]
[1725362434631,0.93840628,59078.0,59077.0,0.002]
[1725362434830,0.93840628,59078.0,59077.0,0.0934]
[1725362434831,1.02840628,59078.0,59077.0,0.0934]
[1725362437936,0.72832221,59078.0,59077.0,0.0934]
[1725362441334,0.66760628,59078.0,59077.0,0.0934]
[1725362442137,0.30680628,59078.0,59077.0,0.0934]
[1725362442336,0.66760628,59078.0,59077.0,0.0934]
[1725362448039,0.66760628,59078.0,59077.0,0.178039]
[1725362452245,0.66760628,59078.0,59077.0,0.002]
[1725362452459,0.75224428,59078.0,59077.0,0.002]
[1725362452841,0.81296045,59078.0,59077.0,0.002]
[1725362454142,0.72832245,59078.0,59077.0,0.002]
[1725362454546,0.73132245,59078.0,59077.0,0.002]
[1725362455051,0.73432245,59078.0,59077.0,0.002]
[1725362460852,0.67360628,59078.0,59077.0,0.002]
[1725362467565,0.75824428,59078.0,59077.0,0.002]
[1725362468960,0.80824428,59078.0,59077.0,0.002]
[1725362470261,0.75824428,59078.0,59077.0,0.002]
[1725362470561,0.58360628,59078.0,59077.0,0.002]
[1725362470759,0.67360628,59078.0,59077.0,0.002]
[1725362471057,0.73432092,59078.0,59077.0,0.002]
[1725362475658,0.55968292,59078.0,59077.0,0.086639]
[1725362475862,0.38896828,59078.0,59077.0,0.176639]
[1725362483865,0.02816828,59078.0,59077.0,0.176639]
[1725362484174,0.11816828,59078.0,59077.0,0.176639]
[1725362487274,0.23816828,59078.0,59077.0,0.002]
[1725362487469,0.32280628,59078.0,59077.0,0.002]
[1725362489677,0.40744428,59078.0,59077.0,0.002]
[1725362490366,0.44744428,59078.0,59077.0,0.002]
[1725362492068,0.50816493,59078.0,59077.0,0.002]
[1725362494770,0.59280293,59078.0,59077.0,0.002]
[1725362497175,0.50816493,59078.0,59077.0,0.002]
[1725362497867,0.44744428,59078.0,59077.0,0.002]
[1725362498774,1.16904428,59078.0,59077.0,0.002]
[1725362502078,0.5078,59077.0,59063.0,0.0489]
[1725362502273,0.896652,59068.0,59062.0,0.045]
[1725362502470,1.016652,59068.0,59062.0,0.045]
[1725362503279,1.106652,59068.0,59062.0,0.045]
[1725362503484,1.106652,59068.0,59059.0,0.133364]
[1725362503775,1.191304,59068.0,59059.0,0.0487]
[1725362504881,1.197304,59068.0,59059.0,0.0487]
[1725362505575,1.203304,59068.0,59059.0,0.0487]
[1725362506487,1.211304,59068.0,59059.0,0.0487]
[1725362507181,1.205304,59068.0,59059.0,0.0487]
[1725362507488,1.22762042,59068.0,59059.0,0.0487]
[1725362508074,1.28835136,59068.0,59059.0,0.0487]
[1725362508372,1.22762042,59068.0,59059.0,0.0487]
[1725362513185,1.13762042,59068.0,59059.0,0.0487]
[1725362513391,1.05296842,59068.0,59059.0,0.0487]
[1725362513583,1.05296842,59068.0,59059.0,0.133365]
[1725362513788,1.13762042,59068.0,59059.0,0.0487]
[1725362517593,0.87831642,59068.0,59061.0,0.09]
[1725362517796,0.87831642,59068.0,59067.0,0.08490701]
[1725362518296,0.15671642,59068.0,59067.0,0.08490701]
[1725362518696,0.51751642,59068.0,59067.0,0.08490701]